[Event "Slovakia Open 2022"]
[Site "Bratislava"]
[Date "2022.09.30"]
[Round "1.33"]
[White "Rosol, Alexander"]
[Black "Matejka, Simon"]
[Result "1-0"]
[ECO "C46"]
[WhiteElo "2041"]
[BlackElo "1422"]
[Annotator "TA"]
[PlyCount "45"]
[EventDate "2022.09.30"]
[EventCountry "SVK"]
[SourceTitle "playchess.com"]
[Source "ChessBase"]
[SourceQuality "1"]
[TimeControl "2700+10"]

{[%evp 15,45,10,64,0,28,0,165,153,153,159,163,147,216,238,232,226,379,381,383,351,547,532,1278,1114,1202,794,794,754,29992,2812,29997,29998]} 1. e4 {[%emt 0:00:07]} e5 {[%emt 0:00:11]} 2. Nf3 {[%emt 0:00:09]} Nc6 {[%emt 0:00:10]} 3. Nc3 {[%emt 0:00:13]} Bc5 {[%emt 0:00:43]} 4. Nxe5 {[%emt 0:02:19]} Nxe5 {[%emt 0:00:32]} 5. d4 {[%emt 0:00:06]} Bd6 {[%emt 0:00:03]} 6. dxe5 {[%emt 0:00:19]} Bxe5 {[%emt 0:00:11]} 7. f4 {[%emt 0:01:36]} Bxc3+ {[%emt 0:00:26]} 8. bxc3 {[%emt 0:00:03]} Nf6 {[%emt 0:00:22]} (8... d6 $1 $11) 9. Bd3 {[%emt 0:09:06] White is more active. C46: 3 Nc3: Unusual Black 3rd moves.} (9. e5 $5 {[%cal Re5f6]} Qe7 10. Be2 $14) 9... d5 $1 {[%emt 0:02:34]} 10. e5 {[%emt 0:03:31] [#]} Ng4 $146 {[%emt 0:00:54]} (10... Bg4 $11 {and Black is okay.} 11. Qd2 (11. Be2 Bxe2 12. Qxe2 Ne4 $11) 11... Ne4) ({Predecessor:} 10... Bg4 11. Qd2 Ne4 12. Bxe4 dxe4 13. Ba3 Qxd2+ 14. Kxd2 O-O-O+ 15. Ke3 h5 16. h3 Bf5 {0-1 (38) Kuipers,S (2292)-Romanishin,O (2532) Hoogeveen 2008}) 11. Qf3 {[%emt 0:02:51] White is clearly better.} O-O {[%emt 0:05:16]} 12. Ba3 {[%emt 0:06:10]} Re8 {[%emt 0:01:02]} 13. O-O-O {[%emt 0:00:04] aiming for h3.} Bd7 {[%emt 0:03:03]} (13... f5 $16 14. h3 Nh6) 14. h3 $18 {[%emt 0:03:22][%cal Bh2h3,Bh3g4][%mdl 32]} ({Don't do} 14. Qxd5 $6 Bc6 15. Qc5 Qh4) 14... Nh6 {[%emt 0:01:21][%cal Bg4h6,Bh6f5,Bf5e3][%mdl 32]} 15. g4 $40 {[%emt 0:01:36][%cal Bg2g4,Bg4g5][%mdl 160] White is out for blood.} ({Don't play} 15. Qxd5 Bc6 16. Qxd8 Raxd8) 15... Qh4 $2 {[%emt 0:02:39]} (15... Kh8 {is a better defense.} 16. Qxd5 Bc6 17. Qxd8 Raxd8) 16. g5 {[%emt 0:02:46]} ({And not} 16. Qxd5 Bc6 17. Qd4 Bxh1 18. Rxh1 Nxg4 $17) 16... Nf5 {[%emt 0:00:42]} 17. Qg4 {[%emt 0:00:06]} Qxg4 {[%emt 0:02:26]} (17... h5 $142 18. gxh6 Qxg4 19. hxg4 Ne3) 18. hxg4 {[%emt 0:00:03]} Ne3 {[%emt 0:01:21]} 19. Bxh7+ {[%emt 0:01:21]} Kh8 {[%emt 0:00:05]} 20. Bf5+ {[%emt 0:03:23]} Kg8 {[%emt 0:00:36]} 21. Bxd7 {[%emt 0:00:08]} Red8 {[%emt 0:00:16]} 22. Rd3 {[%emt 0:00:36]} (22. Rd2 $142 Nf1 23. Rxf1 b6 24. Rxd5 c6 25. Bxc6 Rdc8 26. Bxa8 b5 {[#]} 27. Rfd1 $1) 22... Nc4 {[%emt 0:00:15] [#]} 23. Rdh3 $1 {[%emt 0:00:12] Weighted Error Value: White=0.15 (very precise) /Black=1.20} 1-0

[Event "Slovakia Open 2022"]
[Site "Bratislava"]
[Date "2022.09.30"]
[Round "1.34"]
[White "Ruderfer, Mark B"]
[Black "Djubek, Boris"]
[Result "0-1"]
[ECO "C34"]
[WhiteElo "2236"]
[BlackElo "1995"]
[Annotator "TA"]
[PlyCount "78"]
[EventDate "2022.09.30"]
[EventCountry "SVK"]
[SourceTitle "playchess.com"]
[Source "ChessBase"]
[SourceQuality "1"]
[TimeControl "2700+10"]

{[%evp 9,78,41,59,49,48,54,93,73,119,16,23,19,20,2,43,39,50,-124,-110,-116,-107,-146,-127,-119,-53,-130,-130,-168,-181,-183,-164,-204,-158,-173,-167,-163,-168,-168,-176,-145,-138,-252,-235,-347,-305,-345,-343,-584,-347,-334,-339,-325,-338,-333,-131,-281,-268,-286,-150,-163,-148,-141,-138,-1824,-1608,-6187,-1036,-973,-957,-29998,-29999]} 1. e4 {[%emt 0:00:18]} e5 {[%emt 0:00:03]} 2. Nc3 {[%emt 0:00:07]} Nf6 {[%emt 0:00:37]} 3. f4 {[%emt 0:00:08]} d6 {[%emt 0:00:29]} 4. Nf3 {[%emt 0:00:12]} exf4 {[%emt 0:01:31]} 5. d4 {[%emt 0:00:50]} Be7 {[%emt 0:01:09]} 6. Bxf4 {[%emt 0:01:35] C34: King's Gambit Accepted: 3 Nf3: 3...Nf6 and 3...d6.} O-O {[%emt 0:00:24]} 7. Bd3 {[%emt 0:00:54]} Nc6 {[%emt 0:01:43] [#]} 8. a3 $1 {[%emt 0:02:03] White is better.} Nh5 {[%emt 0:01:56] [#]} (8... Bg4 $142) 9. Bg3 $146 {[%emt 0:00:41]} (9. Be3 $16) ({Predecessor:} 9. Be3 Bg4 10. O-O Bh4 11. Qd2 Re8 12. Nxh4 Qxh4 13. Bg5 {1-0 (13) Wittal,W (2096)-De Lima,S (1801) IECC email 2018}) 9... Nxg3 {[%emt 0:01:25]} 10. hxg3 {[%emt 0:00:21]} Bg4 {[%emt 0:00:45]} 11. Ne2 {[%emt 0:03:27]} h5 {[%emt 0:02:00]} 12. Qd2 {[%emt 0:00:30]} Bf6 {[%emt 0:01:53]} 13. d5 $2 {[%emt 0:08:07]} (13. O-O-O $14 {stays ahead.}) 13... Ne5 $17 {[%emt 0:02:10]} ({Stronger than} 13... Bxb2 14. Ra2 Ne5 15. Rxb2 $15) 14. Nxe5 {[%emt 0:00:38]} Bxe5 {[%emt 0:00:29] A strong pair of Bishops.} 15. O-O-O {[%emt 0:01:01]} g6 {[%emt 0:01:49]} 16. Rdf1 {[%emt 0:00:41]} a6 {[%emt 0:02:09]} ({Better is} 16... c5 $17 {[%cal Ob7b5] Threatens to win with ...b5!} 17. c3 a6) 17. Nf4 {[%emt 0:00:17]} ({White should try} 17. c3 $1 $15) 17... Qg5 {[%emt 0:02:04]} 18. Be2 {[%emt 0:01:36]} Bxe2 {[%emt 0:02:26]} 19. Qxe2 {[%emt 0:00:02]} Qxg3 {[%emt 0:02:57]} 20. Nh3 {[%emt 0:02:07]} b5 {[%emt 0:02:41][%cal Bb7b5,Bb5b4,Bb4a3][%mdl 32]} 21. Kb1 {[%emt 0:01:28]} a5 {[%emt 0:00:42]} 22. Rf3 {[%emt 0:02:49]} Qg4 {[%emt 0:00:57]} 23. Rg1 {[%emt 0:02:12]} b4 {[%emt 0:02:18]} 24. Nf2 {[%emt 0:00:59]} Qd7 {[%emt 0:00:31] Black is more active.} 25. Nd3 {[%emt 0:00:59]} (25. Ka2 $17 {might work better.}) 25... Bd4 {[%emt 0:01:19]} 26. Rgf1 {[%emt 0:01:52]} (26. Nf2 $142) 26... bxa3 $19 {[%emt 0:00:43] Strongly threatening ...Qb5.} 27. c3 {[%emt 0:01:37]} Bg7 {[%emt 0:00:22]} 28. e5 $2 {[%emt 0:01:59]} (28. b3) 28... axb2 {[%emt 0:03:58]} 29. e6 {[%emt 0:02:13]} fxe6 {[%emt 0:00:25]} 30. dxe6 {[%emt 0:00:20] [#] White threatens Rxf8+ and mate.} Qa4 $1 {[%emt 0:03:36]} 31. Nxb2 {[%emt 0:04:15]} Qc6 $2 {[%emt 0:02:24]} (31... Qg4 $19 {has better winning chances. ...Bxc3 is the strong threat.} 32. R1f2 Rxf3 33. Qxf3 Qxf3 34. Rxf3 Rf8) 32. e7 {[%emt 0:02:28]} (32. Rxf8+ $17 {was the only chance.} Bxf8 33. Qc2) 32... Rxf3 {[%emt 0:00:18]} 33. Rxf3 {[%emt 0:00:15]} a4 {[%emt 0:01:00]} ({Black should play} 33... d5 $19 {Hoping for ...Re8.} 34. Re3 Re8) 34. Qe6+ $17 {[%emt 0:00:28]} Kh7 {[%emt 0:00:16]} 35. Rg3 {[%emt 0:00:28]} Qe8 {[%emt 0:00:08] And now ...Be5 would win.} 36. Rf3 $2 {[%emt 0:00:49][%mdl 8192] Now White is beyond hope.} (36. Ka2 $17) 36... a3 $19 {[%emt 0:00:07]} 37. Nc4 {[%emt 0:00:13]} a2+ {[%emt 0:00:08]} (37... Qb5+ $142 38. Kc2 a2) 38. Ka1 {[%emt 0:00:03]} Qb5 {[%emt 0:00:16][%csl Ga2][%cal Rb5b1]} 39. Rf1 {[%emt 0:00:20] Inhibits Qb1+.} Bxc3+ {[%emt 0:00:12] Weighted Error Value: White=0.74/Black=0.54} 0-1

[Event "Slovakia Open 2022"]
[Site "Bratislava"]
[Date "2022.09.30"]
[Round "1.35"]
[White "Mandak, Miroslav"]
[Black "Certik Peter"]
[Result "1-0"]
[ECO "C30"]
[WhiteElo "1864"]
[BlackElo "1000"]
[Annotator "NA COMBH"]
[PlyCount "81"]
[EventDate "2022.09.30"]
[EventCountry "SVK"]
[SourceTitle "playchess.com"]
[Source "ChessBase"]
[SourceQuality "1"]
[TimeControl "2700+10"]

1. e4 {[%emt 0:00:20]} e5 {[%emt 0:00:04]} 2. f4 {[%emt 0:00:03]} Nc6 {[%emt 0:00:10]} 3. Nf3 {[%emt 0:00:11]} d6 {[%emt 0:00:10]} 4. Bc4 {[%emt 0:00:28]} h6 {[%emt 0:00:38]} 5. d3 {[%emt 0:01:28]} Bg4 {[%emt 0:01:09]} 6. c3 {[%emt 0:00:06]} Nf6 {[%emt 0:01:25]} 7. O-O {[%emt 0:00:52]} Be7 {[%emt 0:01:02]} 8. b4 {[%emt 0:02:01]} a6 {[%emt 0:00:58]} 9. a4 {[%emt 0:00:23]} b5 {[%emt 0:00:27]} 10. axb5 {[%emt 0:00:13]} axb5 {[%emt 0:00:02]} 11. Rxa8 {[%emt 0:00:17]} Qxa8 {[%emt 0:00:03]} 12. Bxb5 {[%emt 0:00:02]} O-O {[%emt 0:00:04]} 13. Qa4 {[%emt 0:02:36]} Qa7+ {[%emt 0:00:29]} 14. Kh1 {[%emt 0:00:41]} Bd7 {[%emt 0:02:09]} 15. Qxa7 {[%emt 0:05:27]} Nxa7 {[%emt 0:00:05]} 16. Bxd7 {[%emt 0:00:38]} Nxd7 {[%emt 0:00:05]} 17. g3 {[%emt 0:00:37]} Nc6 {[%emt 0:01:31]} 18. Na3 {[%emt 0:02:47]} Ra8 {[%emt 0:01:50]} 19. Bb2 {[%emt 0:00:50]} f6 {[%emt 0:02:36]} 20. Ra1 {[%emt 0:01:15]} Nb6 {[%emt 0:00:57]} 21. Nb5 {[%emt 0:03:02]} Rxa1+ {[%emt 0:01:41]} 22. Bxa1 {[%emt 0:00:02]} Bd8 {[%emt 0:00:07]} 23. Kg2 {[%emt 0:00:45]} Na4 {[%emt 0:00:13]} 24. Kf2 {[%emt 0:00:26]} Kf7 {[%emt 0:00:33]} 25. Ke2 {[%emt 0:01:31]} g6 {[%emt 0:01:50]} 26. Kd2 {[%emt 0:01:03]} exf4 {[%emt 0:01:48]} 27. gxf4 {[%emt 0:00:01]} g5 {[%emt 0:00:15]} 28. f5 {[%emt 0:00:40]} g4 {[%emt 0:00:05]} 29. Nfd4 {[%emt 0:00:51]} Ne5 {[%emt 0:01:26]} 30. Ne6 {[%emt 0:02:05]} Ke7 {[%emt 0:00:02]} 31. Ke3 {[%emt 0:00:49]} h5 {[%emt 0:00:06]} 32. c4 {[%emt 0:00:45]} Nf3 {[%emt 0:04:05]} 33. Nxd8 {[%emt 0:02:20]} Kxd8 {[%emt 0:00:03]} 34. Bxf6+ {[%emt 0:00:10]} Kd7 {[%emt 0:00:06]} 35. h3 {[%emt 0:00:19]} Ne5 {[%emt 0:01:17]} 36. Bxe5 {[%emt 0:02:30]} dxe5 {[%emt 0:00:07]} 37. hxg4 {[%emt 0:00:14]} hxg4 {[%emt 0:00:03]} 38. d4 {[%emt 0:01:03]} exd4+ {[%emt 0:00:21]} 39. Nxd4 {[%emt 0:00:05]} Nb2 {[%emt 0:00:07]} 40. c5 {[%emt 0:00:12]} Nc4+ {[%emt 0:00:20]} 41. Kf4 {[%emt 0:00:15]} 1-0

[Event "Slovakia Open 2022"]
[Site "Bratislava"]
[Date "2022.09.30"]
[Round "1.36"]
[White "Hryshko Herman"]
[Black "Hnatyshyn, Anastasiia"]
[Result "0-1"]
[ECO "D53"]
[WhiteElo "1000"]
[BlackElo "2087"]
[Annotator "TA"]
[PlyCount "56"]
[EventDate "2022.09.30"]
[EventCountry "SVK"]
[SourceTitle "playchess.com"]
[Source "ChessBase"]
[SourceQuality "1"]
[TimeControl "2700+10"]

{[%evp 9,55,14,14,-33,-21,-93,-85,-159,-84,-212,-137,-316,-301,-306,-291,-287,-174,-305,-243,-243,-229,-250,-245,-333,-308,-378,-344,-1397,-1394,-1350,-1316,-2922,-2693,-29990,-29991,-29992,-29993,-29993,-29994,-29994,-29995,-29997,-29998,-29998,-29998,-29998,-29999,-29999]} 1. d4 {[%emt 0:00:10]} d5 {[%emt 0:00:03]} 2. c4 {[%emt 0:00:03]} e6 {[%emt 0:00:03]} 3. Nc3 {[%emt 0:00:21]} Nf6 {[%emt 0:00:05]} 4. Bg5 {[%emt 0:00:04]} Be7 {[%emt 0:00:07]} 5. Nf3 {[%emt 0:00:48]} O-O {[%emt 0:00:41]} 6. Ne5 {[%emt 0:00:30] [#] D53: Queen's Gambit Declined: 4 Bg5 Be7: Early deviations.} (6. e3 $11) 6... c5 $146 {[%emt 0:02:46]} ({Predecessor:} 6... Nfd7 7. Bxe7 Qxe7 8. Nxd7 Qxd7 9. Qd2 dxc4 10. d5 a6 11. Rd1 Qe7 12. d6 Rd8 13. g3 f5 14. e4 Rd7 15. Ke2 f4 16. gxf4 b5 17. a4 a5 18. f5 {1-0 (18) Boe,O (1894)-Juriloo,K (2020) Stavanger 2017}) 7. dxc5 {[%emt 0:01:41] [#]} (7. e3 $11) 7... d4 $1 $17 {[%emt 0:01:06]} 8. Nb5 {[%emt 0:01:20] [#]} (8. Na4 $142) 8... Bxc5 {[%emt 0:00:37]} ({Black should try} 8... a6 $1 {[%cal Ra6b5]} 9. Na3 Ne4) 9. Qa4 {[%emt 0:03:22]} (9. Nd3 $17) 9... Nc6 {[%emt 0:02:56]} 10. Nxc6 {[%emt 0:01:10]} (10. Nd3 $17 Be7 11. g3) 10... bxc6 $19 {[%emt 0:00:03]} 11. Na3 {[%emt 0:03:18]} Qb6 {[%emt 0:02:10]} 12. Bxf6 {[%emt 0:00:10]} gxf6 {[%emt 0:02:00]} 13. Rb1 {[%emt 0:01:01]} (13. O-O-O {was the only defense.}) 13... Bb4+ {[%emt 0:01:08]} 14. Kd1 {[%emt 0:00:23]} e5 {[%emt 0:00:42]} 15. Nc2 {[%emt 0:02:34] [#]} Bf5 $1 {[%emt 0:01:45]} 16. g4 {[%emt 0:03:27]} (16. Qb3 Rfd8) 16... Bg6 {[%emt 0:02:13] A strong pair of Bishops.} 17. h4 {[%emt 0:00:42]} Rfd8 {[%emt 0:01:11][%cal Od4d3] Hoping for ...d3!} 18. Rh3 {[%emt 0:01:04] Against d3} (18. Nxb4 Bxb1 19. Kc1) 18... d3 {[%emt 0:00:47]} 19. Nxb4 {[%emt 0:08:27]} Qxf2 {[%emt 0:02:07][%mdl 64] ( -> ...dxe2+). Trapped Piece} 20. Nxd3 {[%emt 0:11:35]} Qxf1+ {[%emt 0:00:21]} 21. Kc2 {[%emt 0:01:28]} Qxe2+ {[%emt 0:00:54] Black mates.} 22. Kc3 {[%emt 0:02:45]} Rxd3+ {[%emt 0:00:12]} 23. Rxd3 {[%emt 0:00:38]} Qxd3+ {[%emt 0:00:05]} 24. Kb4 {[%emt 0:00:04]} Rb8+ {[%emt 0:00:23]} 25. Kc5 {[%emt 0:00:59]} Qd4+ {[%emt 0:00:03]} 26. Kxc6 {[%emt 0:00:07]} Qb6+ {[%emt 0:00:04]} 27. Kd7 {[%emt 0:00:20]} Rd8+ {[%emt 0:00:03]} 28. Ke7 {[%emt 0:00:17]} Qd6# {[%emt 0:00:02] Black took control after the opening.  Weighted Error Value: White=1.20/Black=0.16 (very precise)} 0-1

[Event "Slovakia Open 2022"]
[Site "Bratislava"]
[Date "2022.09.30"]
[Round "1.37"]
[White "Krajnak, Robert"]
[Black "Merva Max"]
[Result "1-0"]
[ECO "A28"]
[WhiteElo "1931"]
[BlackElo "1000"]
[Annotator "TA"]
[PlyCount "99"]
[EventDate "2022.09.30"]
[EventCountry "SVK"]
[SourceTitle "playchess.com"]
[Source "ChessBase"]
[SourceQuality "1"]
[TimeControl "2700+10"]

{[%evp 9,98,10,19,18,110,127,118,56,179,21,477,476,477,484,893,887,1015,981,1050,997,1059,1062,1170,1183,1202,1198,1193,1193,1191,1134,1251,1214,1291,1245,1366,1362,1350,1344,1618,1612,1643,1637,2143,2160,2020,1993,29981,29982,29990,29989,29989,29989,29987,29988,29991,29992,29994,29988,29994,29991,29994,29995,29995,29992,29994,29994,29994,29993,29993,29993,29993,29993,29993,29993,29993,29993,29993,29994,29995,29995,29995,29995,29996,29997,29997,29998,29998,29998,29998,29999,29999]} 1. c4 {[%emt 0:00:05]} e5 {[%emt 0:00:02]} 2. Nc3 {[%emt 0:00:01]} Nc6 {[%emt 0:00:06]} 3. d3 {[%emt 0:00:11]} Nf6 {[%emt 0:00:13]} 4. Nf3 {[%emt 0:00:06]} d6 {[%emt 0:00:07]} 5. g3 {[%emt 0:00:20]} Bg4 {[%emt 0:00:13]} 6. Bg2 {[%emt 0:00:01] A28: English Opening: Four Knights Variation.} d5 {[%emt 0:00:12] [#]} (6... g6 $11 {keeps the balance.}) 7. cxd5 $146 {[%emt 0:00:41]} ({Predecessor:} 7. Bg5 Be6 8. cxd5 Bxd5 9. Bxf6 gxf6 10. O-O Bg7 11. e3 O-O 12. d4 Bxf3 13. Bxf3 exd4 14. Bxc6 dxc3 15. Qxd8 Rfxd8 16. Bxb7 cxb2 {0-1 (56) Wang,A (1196)-Xu,X (910) Sault Ste Marie 2017}) 7... Nxd5 {[%emt 0:00:03] [#]} 8. O-O {[%emt 0:01:12]} (8. Nxe5 $1 $16 {[%mdl 512]} Nxc3 (8... Nxe5 9. Nxd5) 9. Bxc6+ bxc6 10. Qb3 (10. bxc3 Qd5 $14)) 8... Bb4 {[%emt 0:00:03] [#]} (8... Nb6 $14) 9. Qb3 $2 {[%emt 0:02:01]} (9. Nxe5 $1 $18 {[%mdl 512]} Nxe5 (9... Nxc3 10. bxc3) 10. Nxd5) 9... Na5 {[%emt 0:00:24][%mdl 8192]} 10. Qxd5 $18 {[%emt 0:00:15]} Qxd5 {[%emt 0:00:20]} 11. Nxd5 {[%emt 0:00:05][%cal Bc3d5,Bd5b4,Bb4c2,Bc2e3][%mdl 32]} O-O {[%emt 0:00:10]} (11... Bd6 $142 12. Ne3 Bd7) 12. Nxb4 {[%emt 0:00:02]} c6 {[%emt 0:00:12]} 13. Nc2 {[%emt 0:00:20]} c5 {[%emt 0:00:38]} 14. Ne3 {[%emt 0:00:11]} Bh5 {[%emt 0:00:19]} 15. g4 {[%emt 0:00:07]} Bg6 {[%emt 0:00:10]} 16. Nxe5 {[%emt 0:00:02]} Nc6 {[%emt 0:00:16]} 17. Nxc6 {[%emt 0:00:43]} bxc6 {[%emt 0:00:02]} 18. Bxc6 {[%emt 0:00:03]} Rac8 {[%emt 0:00:12]} 19. Bd5 {[%emt 0:00:33]} Rc7 {[%emt 0:00:15]} 20. Bd2 {[%emt 0:00:49]} Re8 {[%emt 0:00:56]} 21. Rac1 {[%emt 0:00:19]} Rec8 {[%emt 0:00:04]} 22. Rc2 {[%emt 0:00:16]} h5 {[%emt 0:00:19]} 23. h3 {[%emt 0:00:16]} h4 {[%emt 0:00:26]} 24. Rfc1 {[%emt 0:00:05]} Kf8 {[%emt 0:00:10]} 25. b4 {[%emt 0:00:07][%cal Rc2c5]} f6 {[%emt 0:00:49]} 26. Rxc5 {[%emt 0:00:04]} Rxc5 {[%emt 0:00:10]} 27. Rxc5 {[%emt 0:00:04]} Rxc5 {[%emt 0:00:02]} 28. bxc5 {[%emt 0:00:02] White mates.} Bf7 {[%emt 0:00:07]} 29. Bxf7 {[%emt 0:00:06]} Kxf7 {[%emt 0:00:02]} 30. Nf5 {[%emt 0:00:10]} g6 {[%emt 0:00:07]} 31. Nxh4 {[%emt 0:00:03]} g5 {[%emt 0:00:03]} 32. Nf5 {[%emt 0:00:03]} Ke6 {[%emt 0:00:03]} 33. e4 {[%emt 0:00:13]} a5 {[%emt 0:00:09]} 34. Bxa5 {[%emt 0:00:04]} Ke5 {[%emt 0:00:08]} 35. Bc3+ {[%emt 0:00:02]} Ke6 {[%emt 0:00:05]} 36. d4 {[%emt 0:00:06][%cal Bd3d4,Bd4d5][%mdl 32]} Kf7 {[%emt 0:00:10]} 37. d5 {[%emt 0:00:10]} Ke8 {[%emt 0:00:05]} 38. Bxf6 {[%emt 0:00:04]} Kd7 {[%emt 0:00:03]} 39. Bxg5 {[%emt 0:00:05]} Kc7 {[%emt 0:00:03]} 40. Bf4+ {[%emt 0:00:08]} Kb7 {[%emt 0:00:02]} 41. h4 {[%emt 0:00:03]} Ka6 {[%emt 0:00:02]} 42. h5 {[%emt 0:00:02]} Kb5 {[%emt 0:00:02]} 43. c6 {[%emt 0:00:10]} Kc4 {[%emt 0:00:04]} 44. h6 {[%emt 0:00:02]} Kc5 {[%emt 0:00:01]} 45. h7 {[%emt 0:00:16]} Kb6 {[%emt 0:00:02]} 46. h8=Q {[%emt 0:00:08]} Ka5 {[%emt 0:00:09]} 47. Qb8 {[%emt 0:00:19]} Ka6 {[%emt 0:00:06]} 48. Qb7+ {[%emt 0:00:12]} Ka5 {[%emt 0:00:02]} 49. Bd2+ {[%emt 0:00:13]} Ka4 {[%emt 0:00:02]} 50. Qb3# {[%emt 0:00:03] Weighted Error Value: White=0.51/Black=1.85} 1-0

[Event "Slovakia Open 2022"]
[Site "Bratislava"]
[Date "2022.09.30"]
[Round "2.1"]
[White "Sobek, Michal"]
[Black "Korobov, Anton"]
[Result "0-1"]
[ECO "B51"]
[WhiteElo "2156"]
[BlackElo "2671"]
[Annotator "TA"]
[PlyCount "80"]
[EventDate "2022.09.30"]
[EventCountry "SVK"]
[SourceTitle "playchess.com"]
[Source "ChessBase"]
[SourceQuality "1"]
[TimeControl "2700+10"]

{[%evp 18,80,8,9,11,10,28,-6,19,14,18,16,44,37,68,81,104,49,48,43,60,-281,-268,-268,-262,-322,-331,-497,-486,-629,-616,-649,-627,-648,-591,-765,-635,-625,-504,-477,-470,-770,-779,-781,-767,-753,-763,-822,-814,-5239,-5218,-5693,-5814,-2360,-1083,-1059,-1036,-1001,-980,-29979,-29979,-29978,-29979,-29979,-29979]} 1. e4 {[%emt 0:00:08]} c5 {[%emt 0:00:02]} 2. Nf3 {[%emt 0:00:02]} d6 {[%emt 0:00:01]} 3. Bb5+ {[%emt 0:00:01]} Nd7 {[%emt 0:00:02]} 4. c3 {[%emt 0:00:03]} Ngf6 {[%emt 0:00:13]} 5. Qe2 {[%emt 0:00:01]} a6 {[%emt 0:00:19]} 6. Ba4 {[%emt 0:00:10]} e5 {[%emt 0:00:09]} 7. O-O {[%emt 0:00:00]} Be7 {[%emt 0:00:11]} 8. d4 {[%emt 0:00:00]} O-O {[%emt 0:00:03]} 9. Rd1 {[%emt 0:00:56] is the legacy move (9.dxe5).} b5 $5 {[%emt 0:00:31][%cal Bb7b5,Bb5b4][%mdl 4] A promising side line.} 10. Bc2 {[%emt 0:00:08]} Qc7 {[%emt 0:00:07] B51: Sicilian: Moscow Variation (3 Bb5+) without 3...Bd7.} 11. a4 {[%emt 0:00:04] 11.a4 is better than 11.d5.} Rb8 {[%emt 0:00:41]} 12. Na3 {[%emt 0:00:53]} b4 {[%emt 0:02:41] The position is equal.} 13. Nc4 {[%emt 0:03:27] [#]} cxd4 $146 {[%emt 0:03:55]} ({Predecessor:} 13... a5 14. Ne3 bxc3 15. bxc3 Re8 16. Nf5 Nf8 17. N3h4 Ng6 18. dxe5 Nxe5 19. Nxe7+ Rxe7 {½-½ (46) Chernyak,V (2107)-Koivusalo,V (1996) Jyvaskyla 2014}) 14. cxd4 {[%emt 0:00:02]} exd4 {[%emt 0:00:10]} 15. Nxd4 {[%emt 0:01:54]} Nc5 {[%emt 0:00:08]} 16. Bf4 {[%emt 0:03:57]} b3 {[%emt 0:03:28]} 17. Bb1 {[%emt 0:00:23]} ({White should try} 17. e5 $16 bxc2 18. Qxc2) 17... Bg4 $14 {[%emt 0:02:22]} 18. f3 {[%emt 0:00:51]} Be6 {[%emt 0:00:40] [#]} 19. Nxd6 $2 {[%emt 0:01:24][%mdl 8192] This costs White the game.} Nh5 $19 {[%emt 0:01:17][%cal Bf6h5,Bh5f4,Bf4h3][%mdl 32]} 20. Be5 {[%emt 0:03:40][%cal Od6f5]} f6 {[%emt 0:00:47][%cal Bf7f6,Bf6e5][%mdl 32]} ({Don't play} 20... Bxd6 21. Nxe6 Nxe6 22. Bxd6 Qb6+ 23. Qf2 $18) 21. N6f5 {[%emt 0:00:49]} fxe5 {[%emt 0:00:20]} 22. Nxe7+ {[%emt 0:00:03]} (22. Nxe6 $142 Nxe6 23. Qxa6) 22... Qxe7 {[%emt 0:00:06]} 23. Nc6 {[%emt 0:00:03]} Qg5 {[%emt 0:00:43]} 24. Nxb8 {[%emt 0:00:02]} Nf4 {[%emt 0:00:19]} 25. Qd2 {[%emt 0:00:26]} Rxb8 {[%emt 0:00:14]} 26. g3 {[%emt 0:00:30]} Rf8 {[%emt 0:00:50][%cal Bb8f8,Bf8f3,Bf3f2][%mdl 32] Strongly threatening ...Bc4.} 27. Kh1 {[%emt 0:01:44]} Nh3 {[%emt 0:00:37][%cal Oe6g4] Hoping for ...Bg4! Pair of Knights!} 28. Qxg5 {[%emt 0:00:01]} Nxg5 {[%emt 0:00:01]} 29. Rc1 {[%emt 0:00:05] [#]} (29. h4 $142 Nxf3 30. Kg2) 29... Rxf3 $1 {[%emt 0:00:20][%cal Of3f2]} 30. h4 {[%emt 0:00:47]} Ngxe4 {[%emt 0:00:02]} 31. Bxe4 {[%emt 0:00:32]} Nxe4 {[%emt 0:00:01]} 32. Re1 {[%emt 0:01:21]} Bd5 {[%emt 0:00:25] aiming for ...Rf2.} 33. Kh2 {[%emt 0:01:09]} Rf2+ {[%emt 0:00:09]} 34. Kg1 {[%emt 0:00:11]} Rxb2 {[%emt 0:00:04]} 35. Rad1 {[%emt 0:00:25]} Nd2 {[%emt 0:00:15] ( -> ...Nf3+)} 36. Re2 {[%emt 0:00:45]} Nf3+ {[%emt 0:00:17]} 37. Kf2 {[%emt 0:00:05]} Ra2 {[%emt 0:00:36] And now ...Nd4 would win.} 38. Rxd5 {[%emt 0:00:43]} Nd4 {[%emt 0:00:02] Black mates.} 39. Rd8+ {[%emt 0:01:35]} Kf7 {[%emt 0:00:03]} 40. Rd7+ {[%emt 0:00:03]} Ke6 {[%emt 0:00:15] Weighted Error Value: White=0.99/Black=0.46} 0-1